fUST/lending_fUST_20241009
["ID","MTS","AMOUNT","RATE_DAILY","PERIOD"]
[340070518,1728459079631,-1191.19,0.00056986,120]
[340070519,1728459079641,-500.0,0.00056986,120]
[340070520,1728459079651,-502.50569461,0.00056986,120]
[340070521,1728459079661,-500.0,0.00056986,120]
[340070522,1728459079670,-500.0,0.00056986,120]
[340070523,1728459079680,-500.0,0.00056986,120]
[340070524,1728459079699,-155.30030027,0.00056986,120]
[340070525,1728459079711,-508.53974356,0.00056986,120]
[340070526,1728459079721,-500.0,0.00056986,120]
[340070527,1728459079731,-462.17024288,0.00056986,120]
[340070528,1728459079741,-500.0,0.00056986,120]
[340070529,1728459079751,-623.00003773,0.00056986,2]
[340070530,1728459079762,-500.0,0.00056986,120]
[340070531,1728459079772,-500.0,0.00056986,120]
[340070532,1728459079782,-288.17107923,0.00056986,120]
[340070533,1728459079792,-500.0,0.00056986,120]
[340070534,1728459079802,-751.07,0.00056986,120]
[340070535,1728459079812,-551.38960585,0.00056986,120]
[340070536,1728459079822,-523.05,0.00056986,120]
[340070537,1728459079832,-500.0,0.00056986,120]
[340070538,1728459079842,-500.0,0.00056986,60]
[340070539,1728459079851,-627.85,0.00056986,2]
[340070540,1728459079861,-500.0,0.00056986,120]
[340070541,1728459079871,-682.88,0.00056986,120]
[340070542,1728459079882,-500.0,0.00056986,10]
[340070543,1728459079893,-615.97720565,0.00056986,120]
[340070544,1728459079904,-500.0,0.00056986,120]
[340070545,1728459079914,-500.0,0.00056986,120]
[340070546,1728459079924,-500.0,0.00056986,120]
[340070547,1728459079934,-500.0,0.00056986,120]
[340070548,1728459079944,-500.0,0.00056986,120]
[340070549,1728459079955,-500.0,0.00056986,120]
[340070550,1728459079966,-500.0,0.00056986,120]
[340070551,1728459079976,-500.0,0.00056986,120]
[340070552,1728459079986,-500.0,0.00056986,120]
[340070553,1728459079996,-506.60569714,0.00056986,120]
[340070554,1728459080006,-316.56750039,0.00056986,120]
[340070555,1728459080016,-564.9213743,0.00056986,120]
[340070556,1728459080026,-500.0,0.00056986,120]
[340070557,1728459080036,-500.0,0.00056986,120]
[340070558,1728459080046,-500.0,0.00056986,120]
[340070559,1728459080060,-500.0,0.00056986,120]
[340070560,1728459080070,-500.0,0.00056986,120]
[340070561,1728459080081,-500.0,0.00056986,120]
[340070562,1728459080091,-481.24819167,0.00056986,120]
[340070563,1728459080101,-500.0,0.00056986,120]
[340070564,1728459080111,-500.0,0.00056986,120]
[340070565,1728459080122,-1411.7,0.00056986,120]
[340070566,1728459080132,-507.61322893,0.00056986,120]
[340070567,1728459080143,-500.0,0.00056986,120]
[340070568,1728459080154,-1143.64,0.00056986,120]
[340070569,1728459080164,-584.35165687,0.00056986,120]
[340070570,1728459080174,-33358.4,0.00056986,18]
[340070571,1728459080184,-504.0695635,0.00056986,120]
[340070572,1728459080194,-500.0,0.00056986,120]
[340070573,1728459080204,-500.0,0.00056986,120]
[340070574,1728459080214,-500.0,0.00056986,120]
[340070575,1728459080225,-4777.17,0.00056986,21]
[340070576,1728459080235,-500.0,0.00056986,120]
[340070577,1728459080246,-599.11,0.00056986,120]
[340070578,1728459080257,-1654.31,0.00056986,120]
[340070579,1728459080267,-3371.8,0.00056986,120]
[340070580,1728459080277,-500.0,0.00056986,120]
[340070581,1728459080287,-825.52,0.00056986,120]
[340070582,1728459080297,-500.0,0.00056986,120]
[340070583,1728459080307,-500.0,0.00056986,120]
[340070584,1728459080316,-500.0,0.00056986,120]
[340070585,1728459080327,-500.0,0.00056986,120]
[340070586,1728459080337,-537.56,0.00056986,120]
[340070587,1728459080348,-500.0,0.00056986,120]
[340070588,1728459080359,-500.0,0.00056986,120]
[340070589,1728459080370,-246.09586795,0.00056986,120]
[340070590,1728459080380,-500.0,0.00056986,120]
[340070591,1728459080390,-500.0,0.00056986,7]
[340070592,1728459080400,-2641.39,0.00056986,120]
[340070593,1728459080410,-500.0,0.00056986,120]
[340070594,1728459080420,-441.17097435,0.00056986,120]
[340070595,1728459080430,-500.0,0.00056986,120]
[340070596,1728459080440,-300.0,0.00056986,120]
[340070597,1728459080451,-579.17,0.00056986,120]
[340070598,1728459080463,-1000.0,0.00056986,120]
[340070599,1728459080473,-2000.0,0.00056986,120]
[340070600,1728459080483,-500.0,0.00056986,120]
[340070601,1728459080493,-1500.0,0.00056986,120]
[340070602,1728459080506,-1000.0,0.00056986,120]
[340070603,1728459080516,-500.0,0.00056986,120]
[340070604,1728459080527,-150.0,0.00057,120]
[340070605,1728459080538,-179.773568,0.00057147,30]
[340070606,1728459080548,-352.712753,0.0005726,120]
[340070607,1728459080559,-292.0,0.0005739,120]
[340070608,1728459080569,-500.0,0.00057424,120]
[340070609,1728459080580,-500.0,0.00057424,120]
[340070610,1728459080590,-677.71,0.00057424,120]
[340070611,1728459080599,-500.0,0.00057424,120]
[340070612,1728459080609,-500.0,0.00057424,120]
[340070613,1728459080620,-500.0,0.00057424,120]
[340070614,1728459080630,-500.0,0.00057424,120]
[340070615,1728459080641,-500.0,0.00057424,120]
[340070616,1728459080651,-500.0,0.00057424,120]
[340070617,1728459080663,-500.0,0.00057424,120]
[340070618,1728459080672,-1318.27,0.00057424,120]
[340070619,1728459080682,-500.0,0.00057424,120]
[340070620,1728459080691,-500.0,0.00057424,120]
[340070621,1728459080701,-500.0,0.00057424,120]
[340070622,1728459080711,-500.0,0.00057424,120]
[340070623,1728459080721,-500.0,0.00057424,120]
[340070624,1728459080731,-560.42255949,0.00057424,120]
[340070625,1728459080743,-500.0,0.00057424,120]
[340070626,1728459080754,-1667.02,0.00057424,120]
[340070627,1728459080765,-200.9549696,0.00057424,120]
[340070628,1728459080775,-1163.83,0.00057424,120]
[340070629,1728459080785,-500.0,0.00057424,120]
[340070630,1728459080796,-500.0,0.00057424,120]
[340070631,1728459080806,-500.0,0.00057424,120]
[340070632,1728459080817,-500.0,0.00057424,120]
[340070633,1728459080829,-500.0,0.00057424,120]
[340070634,1728459080846,-388.22102462,0.00057424,120]
[340070635,1728459080856,-500.0,0.00057424,30]
[340070636,1728459080865,-465.77023009,0.00057424,120]
[340070637,1728459080875,-1071.26,0.00057424,120]
[340070638,1728459080884,-500.0,0.00057424,120]
[340070639,1728459080893,-500.0,0.00057424,120]
[340070640,1728459080903,-500.0,0.00057424,120]
[340070641,1728459080912,-500.0,0.00057424,120]
[340070642,1728459080921,-1191.19,0.00057424,120]
[340070643,1728459080930,-500.0,0.00057424,120]
[340070644,1728459080940,-500.0,0.00057424,120]
[340070645,1728459080949,-500.0,0.00057424,120]
[340070646,1728459080959,-500.0,0.00057424,120]
[340070647,1728459080968,-500.0,0.00057424,120]
[340070648,1728459080977,-500.0,0.00057424,120]
[340070649,1728459080986,-500.0,0.00057424,120]
[340070650,1728459080996,-500.0,0.00057424,120]
[340070651,1728459081006,-500.0,0.00057424,120]
[340070652,1728459081017,-751.07,0.00057424,120]
[340070653,1728459081027,-523.05,0.00057424,120]
[340070654,1728459081037,-500.0,0.00057424,120]
[340070655,1728459081048,-378.13046895,0.00057424,60]
[340070656,1728459081058,-627.85,0.00057424,2]
[340070657,1728459081070,-500.0,0.00057424,120]
[340070658,1728459081082,-682.88,0.00057424,120]
[340070659,1728459081093,-500.0,0.00057424,10]
[340070660,1728459081103,-500.0,0.00057424,120]
[340070661,1728459081114,-218.37847419,0.00057424,120]
[340070662,1728459081123,-500.0,0.00057424,120]
[340070663,1728459081133,-500.0,0.00057424,120]
[340070664,1728459081144,-406.06401016,0.00057424,120]
[340070665,1728459081154,-500.0,0.00057424,120]
[340070666,1728459081164,-569.12208749,0.00057424,120]
[340070667,1728459081174,-496.77626185,0.00057424,120]
[340070668,1728459081184,-500.0,0.00057424,120]
[340070669,1728459081193,-500.0,0.00057424,120]
[340070670,1728459081203,-500.0,0.00057424,120]
[340070671,1728459081212,-500.0,0.00057424,120]
[340070672,1728459081222,-500.0,0.00057424,120]
[340070673,1728459081231,-500.0,0.00057424,120]
[340070674,1728459081240,-500.0,0.00057424,120]
[340070675,1728459081249,-500.0,0.00057424,120]
[340070676,1728459081259,-500.0,0.00057424,120]
[340070677,1728459081268,-1411.7,0.00057424,120]
[340070678,1728459081278,-500.0,0.00057424,120]
[340070679,1728459081288,-1143.64,0.00057424,120]
[340070680,1728459081297,-33358.4,0.00057424,18]
[340070681,1728459081308,-500.0,0.00057424,120]
[340070682,1728459081317,-500.0,0.00057424,120]
[340070683,1728459081330,-500.0,0.00057424,120]
[340070684,1728459081339,-4777.17,0.00057424,21]
[340070685,1728459081348,-444.56973015,0.00057424,120]
[340070686,1728459081361,-599.11,0.00057424,120]
[340070687,1728459081371,-1654.31,0.00057424,120]
[340070688,1728459081382,-3371.8,0.00057424,120]
[340070689,1728459081392,-500.0,0.00057424,120]
[340070690,1728459081402,-825.52,0.00057424,120]
[340070691,1728459081412,-500.0,0.00057424,120]
[340070692,1728459081423,-500.0,0.00057424,120]
[340070693,1728459081433,-500.0,0.00057424,120]
[340070694,1728459081445,-500.0,0.00057424,120]
[340070695,1728459081455,-537.56,0.00057424,120]
[340070696,1728459081464,-587.60145437,0.00057424,120]
[340070697,1728459081475,-500.0,0.00057424,120]
[340070698,1728459081486,-254.03939604,0.00057424,120]
[340070699,1728459081496,-500.0,0.00057424,7]
[340070700,1728459081507,-2641.39,0.00057424,120]
[340070701,1728459081517,-500.0,0.00057424,120]
[340070702,1728459081528,-500.0,0.00057424,120]
[340070703,1728459081538,-300.0,0.00057424,120]
[340070704,1728459081548,-579.17,0.00057424,120]
[340070705,1728459081560,-1000.0,0.00057424,120]
[340070706,1728459081571,-2000.0,0.00057424,120]
[340070707,1728459081582,-500.0,0.00057424,120]
[340070708,1728459081592,-1500.0,0.00057424,120]
[340070709,1728459081602,-1000.0,0.00057424,120]
[340070710,1728459081611,-500.0,0.00057424,120]
[340070711,1728459081620,-526.0,0.000575,120]
[340070712,1728459081630,-516.75,0.00057534,120]
[340070713,1728459081640,-152.0,0.00057616,120]
[340070714,1728459081649,-310.68703531,0.0005782,120]
[340070715,1728459081659,-503.17148579,0.00057863,120]
[340070716,1728459081669,-500.0,0.00057863,120]
[340070717,1728459081678,-677.71,0.00057863,120]
[340070718,1728459081688,-500.0,0.00057863,120]
[340070719,1728459081697,-500.0,0.00057863,120]
[340070720,1728459081707,-500.0,0.00057863,120]
[340070721,1728459081716,-500.0,0.00057863,120]
[340070722,1728459081725,-500.0,0.00057863,120]
[340070723,1728459081735,-500.0,0.00057863,120]
[340070724,1728459081744,-500.0,0.00057863,120]
[340070725,1728459081754,-1318.27,0.00057863,120]
[340070726,1728459081764,-500.0,0.00057863,120]
[340070727,1728459081773,-500.0,0.00057863,120]
[340070728,1728459081782,-276.65169557,0.00057863,120]
[340070729,1728459081792,-500.0,0.00057863,120]
[340070730,1728459081802,-500.0,0.00057863,120]
[340070731,1728459081812,-500.0,0.00057863,120]
[340070732,1728459081822,-1667.02,0.00057863,120]
[340070733,1728459081832,-1163.83,0.00057863,120]
[340070734,1728459081842,-500.0,0.00057863,120]
[340070735,1728459081851,-506.30106313,0.00057863,120]
[340070736,1728459081861,-500.0,0.00057863,120]
[340070737,1728459081870,-551.00459593,0.00057863,120]
[340070738,1728459081880,-500.0,0.00057863,120]
[340070739,1728459081890,-500.0,0.00057863,30]
[340070740,1728459081900,-1071.26,0.00057863,120]
[340070741,1728459081911,-500.0,0.00057863,120]
[340070742,1728459081921,-500.0,0.00057863,120]
[340070743,1728459081931,-500.0,0.00057863,120]
[340070744,1728459081940,-1191.19,0.00057863,120]
[340070745,1728459081950,-500.0,0.00057863,120]
[340070746,1728459081959,-500.0,0.00057863,120]
[340070747,1728459081970,-500.0,0.00057863,120]
[340070748,1728459081981,-500.0,0.00057863,120]
[340070749,1728459081991,-500.0,0.00057863,120]
[340070750,1728459082000,-500.0,0.00057863,120]
[340070751,1728459082010,-286.54270754,0.00057863,120]
[340070752,1728459082020,-500.0,0.00057863,120]
[340070753,1728459082030,-500.0,0.00057863,120]
[340070754,1728459082039,-500.0,0.00057863,120]
[340070755,1728459082049,-751.07,0.00057863,120]
[340070756,1728459082194,-523.05,0.00057863,120]
[340070757,1728459082205,-523.73485633,0.00057863,120]
[340070758,1728459082214,-627.85,0.00057863,2]
[340070759,1728459082224,-500.0,0.00057863,120]
[340070760,1728459082233,-682.88,0.00057863,120]
[340070761,1728459082243,-500.0,0.00057863,10]
[340070762,1728459082252,-500.0,0.00057863,120]
[340070763,1728459082262,-500.0,0.00057863,120]
[340070764,1728459082271,-500.0,0.00057863,120]
[340070765,1728459082281,-500.0,0.00057863,120]
[340070766,1728459082291,-500.0,0.00057863,120]
[340070767,1728459082302,-500.0,0.00057863,120]
[340070768,1728459082312,-500.0,0.00057863,120]
[340070769,1728459082321,-500.0,0.00057863,120]
[340070770,1728459082332,-500.0,0.00057863,120]
[340070771,1728459082343,-500.0,0.00057863,120]
[340070772,1728459082354,-327.09827521,0.00057863,120]
[340070773,1728459082364,-232.4811095,0.00057863,120]
[340070774,1728459082374,-500.0,0.00057863,120]
[340070775,1728459082383,-1411.7,0.00057863,120]
[340070776,1728459082392,-500.0,0.00057863,120]
[340070777,1728459082402,-1143.64,0.00057863,120]
[340070778,1728459082412,-33358.4,0.00057863,18]
[340070779,1728459082423,-500.0,0.00057863,120]
[340070780,1728459082434,-500.86666248,0.00057863,120]
[340070781,1728459082446,-470.16982994,0.00057863,120]
[340070782,1728459082458,-4777.17,0.00057863,21]
[340070783,1728459082468,-599.11,0.00057863,120]
[340070784,1728459082477,-1654.31,0.00057863,120]
[340070785,1728459082487,-3371.8,0.00057863,120]
[340070786,1728459082497,-502.08523203,0.00057863,120]
[340070787,1728459082507,-825.52,0.00057863,120]
[340070788,1728459082518,-500.0,0.00057863,120]
[340070789,1728459082528,-355.8793913,0.00057863,120]
[340070790,1728459082539,-500.0,0.00057863,120]
[340070791,1728459082551,-500.0,0.00057863,120]
[340070792,1728459082561,-537.56,0.00057863,120]
[340070793,1728459082571,-500.0,0.00057863,120]
[340070794,1728459082581,-500.0,0.00057863,7]
[340070795,1728459082591,-2641.39,0.00057863,120]
[340070796,1728459082602,-500.0,0.00057863,120]
[340070797,1728459082612,-500.0,0.00057863,120]
[340070798,1728459082621,-300.0,0.00057863,120]
[340070799,1728459082631,-579.17,0.00057863,120]
[340070800,1728459082642,-1000.0,0.00057863,120]
[340070801,1728459082651,-1516.56979573,0.00057863,120]
[340070802,1728459082661,-500.0,0.00057863,120]
[340070803,1728459082671,-1500.0,0.00057863,120]
[340070804,1728459082680,-1000.0,0.00057863,120]
[340070805,1728459082695,-500.0,0.00057863,120]
[340070806,1728459082705,-100000.0,0.00058,120]
[340070807,1728459082715,-200.0,0.00058,120]
[340070808,1728459082724,-2000.0,0.000582,120]
[340070809,1728459082733,-2000.0,0.000582,120]
[340070810,1728459082743,-2000.0,0.000582,120]
[340070811,1728459082753,-2000.0,0.000582,120]
[340070812,1728459082763,-2000.0,0.000582,120]
[340070813,1728459082772,-2000.0,0.000582,120]
[340070814,1728459082783,-2000.0,0.000582,120]
[340070815,1728459082792,-500.0,0.00058301,120]
[340070816,1728459082803,-677.71,0.00058301,120]
[340070817,1728459082812,-500.0,0.00058301,120]
[340070818,1728459082826,-500.0,0.00058301,120]
[340070819,1728459082835,-181.02736802,0.00058301,120]
[340070820,1728459082845,-500.0,0.00058301,120]
[340070821,1728459082854,-500.0,0.00058301,120]
[340070822,1728459082864,-500.0,0.00058301,120]
[340070823,1728459082873,-500.0,0.00058301,120]
[340070824,1728459082883,-1318.27,0.00058301,120]
[340070825,1728459082892,-500.0,0.00058301,120]
[340070826,1728459082902,-500.0,0.00058301,120]
[340070827,1728459082911,-500.0,0.00058301,120]
[340070828,1728459082920,-500.0,0.00058301,120]
[340070829,1728459082929,-500.0,0.00058301,120]
[340070830,1728459082938,-1667.02,0.00058301,120]
[340070831,1728459082948,-1163.83,0.00058301,120]
[340070832,1728459082958,-308.53345084,0.00058301,120]
[340070833,1728459082967,-500.0,0.00058301,120]
[340070834,1728459082977,-500.0,0.00058301,120]
[340070835,1728459082989,-500.0,0.00058301,30]
[340070836,1728459082999,-1071.26,0.00058301,120]
[340070837,1728459083008,-500.0,0.00058301,120]
[340070838,1728459083018,-500.0,0.00058301,120]
[340070839,1728459083028,-500.0,0.00058301,120]
[340070840,1728459083039,-500.0,0.00058301,120]
[340070841,1728459083050,-1191.19,0.00058301,120]
[340070842,1728459083061,-303.65592295,0.00058301,120]
[340070843,1728459083070,-513.17009819,0.00058301,120]
[340070844,1728459083080,-500.0,0.00058301,120]
[340070845,1728459083091,-500.0,0.00058301,120]
[340070846,1728459083103,-500.0,0.00058301,120]
[340070847,1728459083113,-457.23283476,0.00058301,120]
[340070848,1728459083124,-508.82116221,0.00058301,120]
[340070849,1728459083133,-500.0,0.00058301,120]
[340070850,1728459083144,-751.07,0.00058301,120]
[340070851,1728459083156,-523.05,0.00058301,120]
[340070852,1728459083166,-627.85,0.00058301,2]
[340070853,1728459083175,-500.0,0.00058301,120]
[340070854,1728459083185,-682.88,0.00058301,120]
[340070855,1728459083195,-500.0,0.00058301,10]
[340070856,1728459083204,-500.0,0.00058301,120]
[340070857,1728459083214,-500.0,0.00058301,120]
[340070858,1728459083224,-500.0,0.00058301,120]
[340070859,1728459083233,-500.0,0.00058301,120]
[340070860,1728459083242,-500.0,0.00058301,120]
[340070861,1728459083251,-500.0,0.00058301,120]
[340070862,1728459083261,-500.0,0.00058301,120]
[340070863,1728459083270,-500.0,0.00058301,120]
[340070864,1728459083280,-500.0,0.00058301,120]
[340070865,1728459083289,-500.0,0.00058301,120]
[340070866,1728459083298,-388.08531814,0.00058301,120]
[340070867,1728459083308,-1411.7,0.00058301,120]
[340070868,1728459083317,-500.0,0.00058301,120]
[340070869,1728459083327,-1143.64,0.00058301,120]
[340070870,1728459083336,-33358.4,0.00058301,18]
[340070871,1728459083347,-500.0,0.00058301,120]
[340070872,1728459083357,-4777.17,0.00058301,21]
[340070873,1728459083369,-599.11,0.00058301,120]
[340070874,1728459083379,-1654.31,0.00058301,120]
[340070875,1728459083388,-3371.8,0.00058301,120]
[340070876,1728459083398,-825.52,0.00058301,120]
[340070877,1728459083408,-500.0,0.00058301,120]
[340070878,1728459083418,-500.0,0.00058301,120]
[340070879,1728459083428,-500.0,0.00058301,120]
[340070880,1728459083440,-537.56,0.00058301,120]
[340070881,1728459083449,-500.0,0.00058301,120]
[340070882,1728459083459,-500.0,0.00058301,7]
[340070883,1728459083468,-2641.39,0.00058301,120]
[340070884,1728459083479,-500.0,0.00058301,120]
[340070885,1728459083489,-386.75327366,0.00058301,120]
[340070886,1728459083499,-300.0,0.00058301,120]
[340070887,1728459083508,-579.17,0.00058301,120]
[340070888,1728459083518,-1000.0,0.00058301,120]
[340070889,1728459083528,-500.0,0.00058301,120]
[340070890,1728459083540,-1500.0,0.00058301,120]
[340070891,1728459083550,-1000.0,0.00058301,120]
[340070892,1728459083562,-500.0,0.00058301,120]
[340070893,1728459083574,-1528.16945868,0.00058363,2]
[340070894,1728459083584,-2000.0,0.000584,120]
[340070895,1728459083594,-2000.0,0.000584,120]
[340070896,1728459083603,-2000.0,0.000584,120]
[340070897,1728459083616,-2000.0,0.000584,120]
[340070898,1728459083626,-152.0,0.00058447,120]
[340070899,1728459083636,-5000.0,0.000585,120]
[340070900,1728459083647,-500.0,0.00058571,120]
[340070901,1728459083659,-5000.0,0.00058655,120]
[340070902,1728459083669,-151.0,0.00058713,120]
[340070903,1728459083679,-500.0,0.00058739,120]
[340070904,1728459083688,-677.71,0.00058739,120]
[340070905,1728459083697,-500.0,0.00058739,120]
[340070906,1728459083707,-500.0,0.00058739,120]
[340070907,1728459083716,-500.0,0.00058739,120]
[340070908,1728459083726,-500.0,0.00058739,120]
[340070909,1728459083735,-500.0,0.00058739,120]
[340070910,1728459083744,-500.0,0.00058739,120]
[340070911,1728459083753,-1318.27,0.00058739,120]
[340070912,1728459083763,-500.0,0.00058739,120]
[340070913,1728459083772,-500.0,0.00058739,120]
[340070914,1728459083781,-500.0,0.00058739,120]
[340070915,1728459083791,-500.0,0.00058739,120]
[340070916,1728459083800,-500.0,0.00058739,120]
[340070917,1728459083809,-1667.02,0.00058739,120]
[340070918,1728459083818,-1163.83,0.00058739,120]
[340070919,1728459083829,-500.0,0.00058739,120]
[340070920,1728459083838,-500.0,0.00058739,120]
[340070921,1728459083847,-258.09462675,0.00058739,30]
[340070922,1728459083855,-1071.26,0.00058739,120]
[340070923,1728459083865,-500.0,0.00058739,120]
[340070924,1728459083874,-500.0,0.00058739,120]
[340070925,1728459083882,-500.0,0.00058739,120]
[340070926,1728459083892,-1191.19,0.00058739,120]
[340070927,1728459083901,-500.0,0.00058739,120]
[340070928,1728459083911,-500.0,0.00058739,120]
[340070929,1728459083920,-500.0,0.00058739,120]
[340070930,1728459083930,-500.0,0.00058739,120]
[340070931,1728459083939,-523.58499546,0.00058739,120]
[340070932,1728459083949,-751.07,0.00058739,120]
[340070933,1728459083958,-523.05,0.00058739,120]
[340070934,1728459083968,-627.85,0.00058739,2]
[340070935,1728459083978,-196.08751489,0.00058739,120]
[340070936,1728459083988,-682.88,0.00058739,120]
[340070937,1728459083998,-500.0,0.00058739,10]
[340070938,1728459084007,-500.0,0.00058739,120]
[340070939,1728459084016,-500.0,0.00058739,120]
[340070940,1728459084025,-500.0,0.00058739,120]
[340070941,1728459084035,-500.0,0.00058739,120]
[340070942,1728459084045,-534.95259412,0.00058739,120]
[340070943,1728459084054,-500.0,0.00058739,120]
[340070944,1728459084064,-500.0,0.00058739,120]
[340070945,1728459084074,-500.0,0.00058739,120]
[340070946,1728459084084,-500.0,0.00058739,120]
[340070947,1728459084094,-500.0,0.00058739,120]
[340070948,1728459084103,-1411.7,0.00058739,120]
[340070949,1728459084112,-500.0,0.00058739,120]
[340070950,1728459084122,-1143.64,0.00058739,120]
[340070951,1728459084132,-33358.4,0.00058739,18]
[340070952,1728459084141,-532.30313083,0.00058739,120]
[340070953,1728459084151,-4777.17,0.00058739,21]
[340070954,1728459084161,-599.11,0.00058739,120]
[340070955,1728459084171,-1654.31,0.00058739,120]
[340070956,1728459084181,-3371.8,0.00058739,120]
[340070957,1728459084191,-825.52,0.00058739,120]
[340070958,1728459084201,-500.0,0.00058739,120]
[340070959,1728459084211,-500.0,0.00058739,120]
[340070960,1728459084221,-191.2078985,0.00058739,120]
[340070961,1728459084230,-537.56,0.00058739,120]
[340070962,1728459084241,-500.0,0.00058739,120]
[340070963,1728459084251,-500.0,0.00058739,7]
[340070964,1728459084262,-2641.39,0.00058739,120]
[340070965,1728459084273,-500.0,0.00058739,120]
[340070966,1728459084282,-300.0,0.00058739,120]
[340070967,1728459084292,-579.17,0.00058739,120]
[340070968,1728459084303,-1000.0,0.00058739,120]
[340070969,1728459084313,-500.0,0.00058739,120]
[340070970,1728459084322,-1500.0,0.00058739,120]
[340070971,1728459084339,-1000.0,0.00058739,120]
[340070972,1728459084348,-500.0,0.00058739,120]
[340070973,1728459084358,-500888.76362971,0.000589,120]
[340070974,1728459084369,-516.75,0.00058904,120]
[340070975,1728459084378,-160.0,0.00058998,6]
[340070976,1728459084388,-168.81890461,0.00058999,30]
[340070977,1728459084397,-500.0,0.00059178,120]
[340070978,1728459084406,-677.71,0.00059178,120]
[340070979,1728459084415,-454.78363494,0.00059178,120]
[340070980,1728459084424,-500.0,0.00059178,120]
[340070981,1728459084434,-500.0,0.00059178,120]
[340070982,1728459084443,-500.0,0.00059178,120]
[340070983,1728459084452,-453.17210946,0.00059178,120]
[340070984,1728459084462,-500.0,0.00059178,120]
[340070985,1728459084471,-1318.27,0.00059178,120]
[340070986,1728459084480,-500.0,0.00059178,120]
[340070987,1728459084489,-500.0,0.00059178,120]
[340070988,1728459084499,-500.0,0.00059178,120]
[340070989,1728459084508,-500.0,0.00059178,120]
[340070990,1728459084517,-500.0,0.00059178,120]
[340070991,1728459084527,-1667.02,0.00059178,120]
[340070992,1728459084537,-1163.83,0.00059178,120]
[340070993,1728459084549,-500.0,0.00059178,120]
[340070994,1728459084562,-500.0,0.00059178,120]
[340070995,1728459084572,-1071.26,0.00059178,120]
[340070996,1728459084582,-500.0,0.00059178,120]
[340070997,1728459084593,-500.0,0.00059178,120]
[340070998,1728459084604,-500.0,0.00059178,120]
[340070999,1728459084614,-500.0,0.00059178,120]
[340071000,1728459084625,-1191.19,0.00059178,120]
[340071001,1728459084636,-395.72503895,0.00059178,120]
[340071002,1728459084647,-232.25782203,0.00059178,120]
[340071003,1728459084657,-184.88,0.00059178,120]
[340071004,1728459084667,-751.07,0.00059178,120]
[340071005,1728459084678,-523.05,0.00059178,120]
[340071006,1728459084782,-627.85,0.00059178,2]
[340071007,1728459084792,-682.88,0.00059178,120]
[340071008,1728459084803,-591.76462979,0.00059178,10]
[340071009,1728459084812,-585.87845276,0.00059178,120]
[340071010,1728459084822,-500.0,0.00059178,120]
[340071011,1728459084832,-500.0,0.00059178,120]
[340071012,1728459084841,-500.0,0.00059178,120]
[340071013,1728459084851,-535.94685491,0.00059178,120]
[340071014,1728459084860,-500.0,0.00059178,120]
[340071015,1728459084870,-500.0,0.00059178,120]
[340071016,1728459084879,-591.97956623,0.00059178,120]
[340071017,1728459084888,-500.0,0.00059178,120]